[Event "AUT-ch U16 Boys 2022"]
[Site "Sankt Veit an der Glan"]
[Date "2022.04.13"]
[Round "6.3"]
[White "Marakovits, Nico"]
[Black "Wagner, Leopold Franziskus"]
[Result "1-0"]
[ECO "A58"]
[WhiteElo "2249"]
[BlackElo "2061"]
[Annotator "TA"]
[PlyCount "65"]
[EventDate "2022.04.11"]
[EventType "swiss"]
[EventCountry "AUT"]
[SourceTitle "playchess.com"]
[Source "ChessBase"]
[SourceQuality "1"]
[TimeControl "5400+30"]

{[%evp 9,65,14,63,55,61,35,34,46,48,40,35,46,48,44,42,42,54,20,92,107,109,104,114,125,97,89,123,66,50,0,115,118,120,128,124,47,49,41,124,100,234,239,248,246,529,504,499,481,686,687,645,635,769,641,778,758,730,697]} 1. d4 {[%emt 0:00:03]} Nf6 {[%emt 0:00:03]} 2. c4 {[%emt 0:00:06]} c5 {[%emt 0:00:05]} 3. d5 {[%emt 0:00:04]} b5 {[%emt 0:00:02]} 4. cxb5 {[%emt 0:00:09]} a6 {[%emt 0:00:05]} 5. bxa6 {[%emt 0:00:08]} g6 {[%emt 0:00:22]} (5... e6 $11) 6. Nc3 $14 {[%emt 0:00:11] A58: Benko/Volga Gambit: Lines with 5 bxa6.} Bg7 {[%emt 0:00:12]} 7. a7 {[%emt 0:01:14]} Rxa7 {[%emt 0:00:06]} 8. e4 {[%emt 0:00:13] White is slightly better.} O-O {[%emt 0:00:06]} 9. Nf3 {[%emt 0:00:46]} e6 {[%emt 0:00:46]} 10. Be2 {[%emt 0:05:26]} exd5 {[%emt 0:00:19]} 11. exd5 {[%emt 0:00:09]} d6 {[%emt 0:00:40]} 12. O-O {[%emt 0:00:40]} Re8 {[%emt 0:00:12]} 13. Nd2 {[%emt 0:05:32]} Rae7 {[%emt 0:18:02]} (13... Na6 $11) 14. Bb5 $16 {[%emt 0:05:40]} Ba6 {[%emt 0:21:44][%cal Of6d5]} 15. a4 {[%emt 0:10:12]} Bxb5 {[%emt 0:06:01]} 16. axb5 {[%emt 0:04:52] [#]} Nbd7 $146 {[%emt 0:01:42]} ({Predecessor:} 16... Qd7 17. h3 h6 18. Qf3 Re5 19. Nc4 Rf5 20. Qg3 Bf8 21. Qd3 h5 22. Be3 Qe7 {1-0 (45) Ovchinnikov,V (2346)-Gashev,M (1846) Ekaterinburg 2019}) 17. Nc4 {[%emt 0:02:33]} Ne5 {[%emt 0:05:21]} 18. Ne3 {[%emt 0:08:32]} (18. Nxe5 $16 Rxe5 19. Bf4) 18... Ned7 $14 {[%emt 0:06:29]} 19. Nc4 {[%emt 0:04:32]} (19. Bd2 $1 $14) 19... Ne5 $16 {[%emt 0:00:08] [#]} 20. Nxe5 {[%emt 0:01:24]} Rxe5 {[%emt 0:00:05]} 21. Bf4 $36 {[%emt 0:02:09][%mdl 2048] White is really pushing.} Rf5 {[%emt 0:05:08]} 22. Be3 {[%emt 0:02:03]} ({White should play} 22. g3 $16) 22... h5 $14 {[%emt 0:01:22]} 23. h3 $1 {[%emt 0:01:01] Prevents Ng4. Hoping for Ra6.} Ne4 {[%emt 0:10:38]} (23... Nd7 $1 $14) 24. Qd3 {[%emt 0:03:44]} Nxc3 {[%emt 0:12:35] A mistake that costs the game.} (24... Rfe5 $16) 25. bxc3 $18 {[%emt 0:00:13]} Qh4 {[%emt 0:00:07]} 26. b6 {[%emt 0:06:39]} c4 $2 {[%emt 0:05:44]} (26... Rb8 {might work better.} 27. Rfb1 Re5) 27. Qd2 {[%emt 0:05:17] White is clearly winning.} Rb8 {[%emt 0:03:48]} 28. Rfb1 {[%emt 0:03:05][%cal Bf1b1,Bb1b5,Bb5a5,Ba5a7][%mdl 32]} Rb7 {[%emt 0:01:13]} (28... Qe4 $142 29. Rb5 Qe8) 29. Ra7 {[%emt 0:01:20]} Qe4 {[%emt 0:00:33]} 30. Rb5 {[%emt 0:00:51]} Qe7 {[%emt 0:00:53]} 31. Rba5 {[%emt 0:00:38] [#] Strongly threatening Rxb7.} Re5 {[%emt 0:00:47]} 32. Rxb7 {[%emt 0:01:23]} Qxb7 {[%emt 0:00:02]} 33. Ra7 {[%emt 0:00:08] Weighted Error Value: White=0.17 (very precise) /Black=0.37} 1-0

[Event "AUT-ch U16 Boys 2022"]
[Site "Sankt Veit an der Glan"]
[Date "2022.04.13"]
[Round "6.4"]
[White "Gschiel, Alexander"]
[Black "Hersel, Richard"]
[Result "1/2-1/2"]
[ECO "C43"]
[WhiteElo "2109"]
[BlackElo "1832"]
[Annotator "TA"]
[PlyCount "134"]
[EventDate "2022.04.11"]
[EventType "swiss"]
[EventCountry "AUT"]
[SourceTitle "playchess.com"]
[Source "ChessBase"]
[SourceQuality "1"]
[TimeControl "5400+30"]

{[%evp 10,134,9,11,12,0,10,0,24,28,30,30,50,47,59,49,195,41,65,21,25,33,26,17,137,140,286,-41,182,82,157,120,190,197,387,405,729,120,141,-16,-13,-78,19,-4,169,-75,0,0,0,0,57,63,57,64,362,64,352,14,13,8,12,19,14,-15,0,0,0,0,-3,0,90,0,0,-8,17,0,8,16,61,45,47,58,134,93,87,81,74,33,26,16,17,22,30,0,5,5,5,6,8,8,8,8,20,0,24,0,0,14,16,0,0,0,317,295,254,247,327,0,0,0,0,0,0,0,0,0,0]} 1. e4 {[%emt 0:00:04]} e5 {[%emt 0:00:17]} 2. Nf3 {[%emt 0:00:17]} Nf6 {[%emt 0:00:01]} 3. d4 {[%emt 0:00:17]} Nxe4 {[%emt 0:00:44]} 4. Bd3 {[%emt 0:00:18]} d5 {[%emt 0:00:22]} 5. Nxe5 {[%emt 0:00:39]} Bd6 {[%emt 0:03:58]} 6. Nc3 {[%emt 0:01:10]} Nxc3 {[%emt 0:11:37] C43: Petroff Defence: 3 d4.} 7. bxc3 {[%emt 0:00:07]} Nd7 {[%emt 0:00:35]} 8. O-O $1 {[%emt 0:08:57]} Nxe5 {[%emt 0:15:04]} 9. dxe5 $40 {[%emt 0:00:22][%mdl 128] Black needs to defend precisely.} Bc5 {[%emt 0:00:16]} 10. Qh5 {[%emt 0:08:43]} Be6 {[%emt 0:10:01]} 11. Rb1 {[%emt 0:03:54] [#]} Qd7 $146 {[%emt 0:05:50]} ({Predecessor:} 11... b6 12. Bb5+ Kf8 13. Kh1 f6 14. f4 g6 15. Qh6+ Kf7 16. f5 Bxf5 17. Bd3 Bf8 {0-1 (39) Saponara,N (1838)-Zordan,A (1488) Padova 2008}) 12. Qg5 {[%emt 0:15:51]} f6 {[%emt 0:07:19]} (12... Kf8 $14) 13. Qh5+ $2 {[%emt 0:08:16]} (13. exf6 $18 gxf6 14. Qxf6) 13... Bf7 {[%emt 0:02:11]} 14. Qe2 {[%emt 0:00:38]} (14. Qh4 $5 {[%cal Rb1b7]} fxe5 15. Rxb7 $14) 14... O-O-O {[%emt 0:01:33]} 15. Be3 {[%emt 0:05:14]} Bxe3 {[%emt 0:11:57]} 16. Qxe3 {[%emt 0:06:15]} d4 {[%emt 0:01:12]} (16... Kb8 $11 {keeps the balance.}) 17. cxd4 $16 {[%emt 0:08:27][%cal Od4d5]} Qxd4 {[%emt 0:00:35]} (17... b6 $16 {is a better defense.} 18. Rfe1 fxe5) 18. Be4 $2 {[%emt 0:03:39]} (18. Qf3 Bd5 19. Qh3+ Kb8 $11) (18. Qh3+ $1 $18 Kb8 19. e6) 18... c6 $2 {[%emt 0:01:10]} (18... b6 $1 $15 {stays ahead.}) 19. Qf3 {[%emt 0:00:39]} (19. Qh3+ $1 $18 {has better winning chances.} Kc7 20. e6 $1 Qxe4 21. exf7) 19... Kc7 {[%emt 0:11:11]} (19... Qd7 $142) 20. exf6 {[%emt 0:03:29]} Qxf6 {[%emt 0:02:11]} (20... gxf6 $16 21. Rfd1 Qe5) 21. Qa3 $1 $18 {[%emt 0:01:16]} Kb8 {[%emt 0:03:51]} (21... Ra8 22. Qg3+ Kc8) 22. Qa6 $1 {[%emt 0:04:29][%csl Gb1][%cal Ra6b7]} b6 {[%emt 0:00:01] [#]} (22... Qe7 $142 23. Bxc6 Rd7 24. Bxd7 Qxd7) 23. a4 $2 {[%emt 0:02:25]} (23. Rxb6+ $1 $18 {[%mdl 512] and the rest is easy.} axb6 24. Qxb6+ Kc8 25. Bf5+ $1 {[%mdl 512]} Rd7 26. Rb1 $1) 23... Rd4 $16 {[%emt 0:01:20] [#]} 24. Bd3 {[%emt 0:05:16]} (24. Rxb6+ $1 $16 {[%mdl 512]} axb6 25. Qxb6+ Kc8 26. Bxc6) 24... Be6 $11 {[%emt 0:04:47]} 25. c3 {[%emt 0:04:27] [#]} (25. Rfe1 $11 Bc8 26. Qa5) 25... Rd6 {[%emt 0:02:54]} ({Black should try} 25... Bc8 $1 $17 {[%cal Rc8a6]} 26. Rxb6+ Ka8 27. cxd4 Bxa6 28. Rxa6 Qxd4) 26. Be4 {[%emt 0:02:48] Threatens to win with a5.} Qf4 $2 {[%emt 0:00:59] [#]} (26... Qf7 $11 27. Qa5 Qc7) 27. f3 $2 {[%emt 0:02:18]} (27. a5 $1 $18 {[%cal Ra5b6]} Bc8 28. Qc4) 27... Bc8 {[%emt 0:01:23]} ({Better is} 27... Qe3+ $17 28. Kh1 Qc5) 28. Qc4 {[%emt 0:00:51]} Be6 {[%emt 0:00:02]} 29. Qb4 {[%emt 0:00:15]} Rd2 {[%emt 0:00:51]} (29... Qe3+ $11 30. Kh1 c5) 30. Bxc6 $14 {[%emt 0:01:43]} Qe3+ {[%emt 0:00:38]} (30... Qg5 31. f4 Qd8 32. f5 $16) 31. Kh1 {[%emt 0:00:01] Really sharp!} Qe2 $2 {[%emt 0:00:35][%mdl 8192]} (31... Rc8 $1 $14 32. Rfe1 (32. Qe7 $2 Rxc6 33. Qxg7 Rc7 $19) (32. Qb5 Ba2 $11) 32... Qg5) 32. f4 $2 {[%emt 0:00:31]} (32. Qf4+ $18 Kc8 33. Qg5) 32... Bh3 $2 {[%emt 0:00:30][%mdl 8192] [#]} 33. Qe4 $2 {[%emt 0:01:32]} (33. Rg1 $1 $18) 33... Qxe4 $11 {[%emt 0:00:29]} 34. Bxe4 {[%emt 0:00:00]} Re8 {[%emt 0:00:18]} 35. Bf3 {[%emt 0:00:27]} Bf5 {[%emt 0:00:25]} 36. Rbe1 {[%emt 0:00:09]} Rxe1 {[%emt 0:00:50]} 37. Rxe1 {[%emt 0:00:01][%mdl 4096] Endgame KRB-KRB} Kc7 {[%emt 0:00:20]} 38. Re7+ {[%emt 0:00:19]} Rd7 {[%emt 0:00:02]} 39. Re8 {[%emt 0:00:19]} Rd8 {[%emt 0:00:31]} (39... Bc2 $11) 40. Re5 {[%emt 0:00:24]} ({Of course not} 40. Re7+ $6 Rd7 41. Re5 Bc2 $11) (40. Rxd8 $16 Kxd8 41. Bd1) 40... Bc2 {[%emt 0:00:20]} 41. Bg4 {[%emt 0:00:49]} Rf8 {[%emt 0:01:13]} 42. g3 {[%emt 0:00:27] Strongly threatening Re7+.} Rf7 {[%emt 0:00:10] Inhibits Re7+.} 43. a5 {[%emt 0:00:35]} Ba4 {[%emt 0:00:26]} 44. Kg1 {[%emt 0:00:37] &Bianco is more active.} Bd7 {[%emt 0:00:29]} 45. Be2 {[%emt 0:00:25]} Kd6 {[%emt 0:00:34]} (45... bxa5 $14 46. Rxa5 Kb6 47. Ra6+ Kb7) 46. Bf3 {[%emt 0:01:06]} Bc6 {[%emt 0:00:30]} 47. Bxc6 {[%emt 0:00:48]} Kxc6 {[%emt 0:00:01]} 48. axb6 {[%emt 0:00:06]} Kxb6 $16 {[%emt 0:00:24] KR-KR} 49. Kf2 {[%emt 0:00:20]} a5 {[%emt 0:00:17][%cal Ba7a5,Ba5a4,Ba4a3,Ba3a2][%mdl 32]} 50. Ke2 {[%emt 0:00:25]} Rd7 {[%emt 0:00:20]} ({Don't play} 50... a4 51. Kd3 $16) 51. c4 {[%emt 0:00:53]} Ra7 {[%emt 0:00:17]} 52. Kd2 {[%emt 0:00:38]} a4 {[%emt 0:00:13]} 53. Kc2 {[%emt 0:00:17]} a3 {[%emt 0:00:11] Hoping for ...a2.} 54. Kb1 {[%emt 0:00:10]} a2+ {[%emt 0:00:35]} 55. Ka1 {[%emt 0:00:01]} Kc6 {[%emt 0:00:15]} 56. f5 {[%emt 0:00:47]} h6 {[%emt 0:00:41]} 57. g4 {[%emt 0:00:39]} Kd6 {[%emt 0:00:29]} 58. Rd5+ {[%emt 0:01:17]} Kc6 {[%emt 0:00:10]} 59. f6 {[%emt 0:00:34]} gxf6 {[%emt 0:00:11]} 60. Rf5 {[%emt 0:00:05]} Kd6 $2 {[%emt 0:02:05][%mdl 8192]} (60... Ra4 $11 {and Black stays safe.}) 61. Rxf6+ $18 {[%emt 0:00:35]} Kc5 {[%emt 0:00:01]} 62. Rxh6 {[%emt 0:00:41]} Kxc4 {[%emt 0:00:01]} 63. Rf6 $2 {[%emt 0:00:48]} (63. g5 $18) 63... Kd5 $11 {[%emt 0:00:24] The position is equal.} 64. Rf2 {[%emt 0:00:18]} Ra4 {[%emt 0:00:24]} 65. Rg2 {[%emt 0:00:56] g5 is the strong threat.} Ke6 $1 {[%emt 0:00:21]} 66. g5 {[%emt 0:00:19] And now g6 would win.} Kf7 {[%emt 0:00:07]} 67. h3 {[%emt 0:01:20]} Kg6 {[%emt 0:00:27] Weighted Error Value: White=0.62/Black=0.69} 1/2-1/2

[Event "AUT-ch U16 Boys 2022"]
[Site "Sankt Veit an der Glan"]
[Date "2022.04.13"]
[Round "6.5"]
[White "Kienboeck, Benjamin"]
[Black "Hengl, Philip"]
[Result "1-0"]
[ECO "C65"]
[WhiteElo "1900"]
[BlackElo "1973"]
[Annotator "RC"]
[PlyCount "43"]
[EventDate "2022.04.11"]
[EventType "swiss"]
[EventCountry "AUT"]
[SourceTitle "playchess.com"]
[Source "ChessBase"]
[SourceQuality "1"]
[TimeControl "5400+30"]

1. e4 {[%emt 0:00:04]} e5 {[%emt 0:00:06]} 2. Nf3 {[%emt 0:00:07]} Nc6 {[%emt 0:00:03]} 3. Bb5 {[%emt 0:00:10]} Nf6 {[%emt 0:00:06]} 4. d3 {[%emt 0:00:08]} Bc5 {[%emt 0:00:06]} 5. Bxc6 {[%emt 0:00:38]} dxc6 {[%emt 0:00:07]} 6. Nbd2 {[%emt 0:00:07]} Be6 {[%emt 0:01:30]} 7. O-O {[%emt 0:01:54]} Bd6 {[%emt 0:02:27]} 8. a4 {[%emt 0:02:34]} Qe7 {[%emt 0:05:14]} 9. b3 {[%emt 0:06:30]} Nd7 {[%emt 0:00:49]} 10. Qe2 {[%emt 0:01:41]} g5 {[%emt 0:03:14]} 11. Ne1 {[%emt 0:12:06]} h5 {[%emt 0:01:56]} 12. g3 {[%emt 0:02:17]} Bg4 {[%emt 0:12:04]} 13. f3 {[%emt 0:07:30]} Bh3 {[%emt 0:00:33]} 14. Ng2 {[%emt 0:00:49]} O-O-O {[%emt 0:09:39]} 15. Nc4 {[%emt 0:02:35]} Nf8 {[%emt 0:02:43]} 16. Nxd6+ {[%emt 0:00:49]} cxd6 {[%emt 0:00:33]} 17. Qe3 {[%emt 0:00:43]} Ne6 {[%emt 0:00:59]} 18. Qxa7 {[%emt 0:06:17]} Nd4 {[%emt 0:00:09]} 19. Be3 {[%emt 0:03:34]} Ne2+ {[%emt 0:03:52]} 20. Kf2 {[%emt 0:05:02]} Bxg2 {[%emt 0:00:34]} 21. Kxg2 {[%emt 0:00:51]} h4 {[%emt 0:02:08]} 22. Bb6 {[%emt 0:01:37]} 1-0

[Event "AUT-ch U16 Boys 2022"]
[Site "Sankt Veit an der Glan"]
[Date "2022.04.13"]
[Round "6.6"]
[White "Gloessl, Sota Alexander"]
[Black "Zaytsev, Alexander"]
[Result "1-0"]
[ECO "B23"]
[WhiteElo "1887"]
[BlackElo "1837"]
[Annotator "NA RC"]
[PlyCount "93"]
[EventDate "2022.04.11"]
[EventType "swiss"]
[EventCountry "AUT"]
[SourceTitle "playchess.com"]
[Source "ChessBase"]
[SourceQuality "1"]
[TimeControl "5400+30"]

{[%evp 9,69,15,7,32767,32767,32767,32767,61,107,69,79,32767,32767,32767,32767,32767,32767,32767,32767,32767,360,180,332,338,292,313,314,318,318,344,346,282,306,270,358,322,382,384,395,32767,341,237,248,32767,253,32767,32767,235,307,314,375,295,305,369,355,398,32767,32767,32767,32767,377,441]} 1. e4 {[%emt 0:00:05]} c5 {[%emt 0:00:06]} 2. Nc3 {[%emt 0:00:05]} Nc6 {[%emt 0:00:17]} 3. Nge2 {[%emt 0:00:08]} Nf6 {[%emt 0:00:17]} 4. g3 {[%emt 0:00:08]} d5 {[%emt 0:00:38]} 5. exd5 {[%emt 0:00:29]} Nd4 {[%emt 0:00:14]} 6. Nxd4 {[%emt 0:02:36]} cxd4 {[%emt 0:00:12]} 7. Nb5 {[%emt 0:00:04]} Qb6 {[%emt 0:13:54]} 8. c3 $1 {[%emt 0:13:33]} Nxd5 {[%emt 0:18:48]} 9. Qb3 {[%emt 0:04:22]} (9. Nxd4 $16 Nf6 10. Qb3) 9... Qe6+ {[%emt 0:14:18]} 10. Kd1 {[%emt 0:00:11]} a6 {[%emt 0:02:13]} 11. Qxd5 {[%emt 0:01:00]} axb5 {[%emt 0:00:25]} 12. Bxb5+ {[%emt 0:00:45]} Bd7 {[%emt 0:00:16]} 13. Qxb7 {[%emt 0:03:41]} Rd8 {[%emt 0:00:19]} 14. Bxd7+ {[%emt 0:00:48]} Rxd7 {[%emt 0:01:39]} 15. Qc8+ {[%emt 0:00:11]} Rd8 {[%emt 0:00:15]} 16. Qxe6 {[%emt 0:00:08]} fxe6 {[%emt 0:00:32]} 17. Re1 {[%emt 0:00:53]} dxc3 {[%emt 0:00:41]} 18. bxc3 {[%emt 0:00:11]} Kf7 {[%emt 0:00:14]} 19. Kc2 {[%emt 0:00:56]} g6 {[%emt 0:00:07]} 20. d4 {[%emt 0:00:19]} Bg7 {[%emt 0:00:04]} 21. Bf4 {[%emt 0:00:19]} Rc8 {[%emt 0:00:08]} 22. Be5 {[%emt 0:00:24]} Bxe5 {[%emt 0:00:08]} 23. Rxe5 {[%emt 0:00:11]} ({Less strong is} 23. dxe5 Rc5 24. a4 Rhc8 $18) 23... Rc4 {[%emt 0:00:05]} 24. Kd3 {[%emt 0:03:33]} Rhc8 {[%emt 0:00:11]} 25. Rc1 {[%emt 0:00:08]} Ra4 {[%emt 0:00:11]} 26. Rc2 {[%emt 0:00:13]} Rca8 {[%emt 0:00:14]} 27. Rce2 {[%emt 0:01:35]} R8a6 {[%emt 0:00:28]} 28. f4 {[%emt 0:01:58]} Ke8 {[%emt 0:01:51]} 29. Rxe6 {[%emt 0:00:21]} Rxe6 {[%emt 0:00:13]} 30. Rxe6 {[%emt 0:00:06]} Rxa2 {[%emt 0:00:03]} 31. Re2 {[%emt 0:00:14]} Ra3 {[%emt 0:00:11]} 32. Kc4 {[%emt 0:00:18]} Kd7 {[%emt 0:00:06]} 33. Kb4 {[%emt 0:00:16]} Ra1 {[%emt 0:00:11]} 34. c4 {[%emt 0:00:42]} Rb1+ {[%emt 0:01:14]} 35. Kc5 $18 {[%emt 0:00:10]} e6 {[%emt 0:00:11]} 36. Ra2 {[%emt 0:00:17]} Rb7 {[%emt 0:00:16]} 37. Ra6 {[%emt 0:01:07]} Rc7+ {[%emt 0:00:09]} 38. Kb5 {[%emt 0:00:10]} Rb7+ {[%emt 0:00:04]} 39. Rb6 {[%emt 0:00:07]} Ra7 {[%emt 0:00:03]} 40. c5 {[%emt 0:00:16]} Rc7 {[%emt 0:00:04]} 41. Ka6 {[%emt 0:00:38]} Rc8 {[%emt 0:00:22]} 42. Rd6+ {[%emt 0:01:18]} Ke7 {[%emt 0:00:11]} 43. Kb7 {[%emt 0:00:09]} Rf8 {[%emt 0:00:08]} 44. Kc7 {[%emt 0:00:29]} Ra8 {[%emt 0:00:09]} 45. Rd7+ {[%emt 0:00:07]} Ke8 {[%emt 0:00:07]} 46. Kd6 {[%emt 0:00:14]} Ra5 {[%emt 0:00:37]} 47. Rxh7 1-0

[Event "AUT-ch U16 Boys 2022"]
[Site "Sankt Veit an der Glan"]
[Date "2022.04.13"]
[Round "6.7"]
[White "Giselbrecht, Jerrik"]
[Black "Miazhynski, Michael"]
[Result "0-1"]
[ECO "A05"]
[WhiteElo "1707"]
[BlackElo "2047"]
[Annotator "TA"]
[PlyCount "68"]
[EventDate "2022.04.11"]
[EventType "swiss"]
[EventCountry "AUT"]
[SourceTitle "playchess.com"]
[Source "ChessBase"]
[SourceQuality "1"]
[TimeControl "5400+30"]

{[%evp 17,68,-9,9,-10,21,25,21,-32,0,0,9,-32,-18,-10,0,-5,56,29,24,0,0,-53,-42,-58,-58,-58,-49,-56,-33,-76,-44,-67,0,0,70,-14,14,-46,0,0,0,-1,78,49,97,65,51,-17,-5,-593,-562,-829,-831]} 1. Nf3 {[%emt 0:00:10]} Nf6 {[%emt 0:00:12]} 2. d4 {[%emt 0:00:31]} c5 {[%emt 0:00:10]} 3. e3 {[%emt 0:12:33]} g6 {[%emt 0:04:49]} 4. c4 {[%emt 0:02:44]} Bg7 {[%emt 0:01:08]} 5. Nc3 {[%emt 0:01:25]} O-O {[%emt 0:00:21]} 6. Be2 {[%emt 0:03:37]} cxd4 {[%emt 0:00:31]} 7. exd4 {[%emt 0:01:39]} d5 {[%emt 0:00:05]} 8. O-O {[%emt 0:05:16]} Nc6 {[%emt 0:00:23]} 9. Be3 {[%emt 0:06:59]} Bf5 {[%emt 0:06:31]} (9... dxc4 {keeps more tension.} 10. Bxc4 Bg4 11. h3 Bxf3 12. Qxf3 Nxd4 13. Qxb7 Nc2) 10. Rc1 {[%emt 0:09:51] D94: Grünfeld: 4 Nf3 Bg7 5 e3.} Rc8 {[%emt 0:21:13]} 11. c5 {[%emt 0:11:23]} Ne4 {[%emt 0:20:28][%cal Oe4c5]} 12. Bb5 {[%emt 0:09:23] [#]} (12. Qb3 $11) 12... Nxc3 $146 {[%emt 0:09:11]} ({Predecessor:} 12... Bg4 13. Be2 Nxc3 14. Rxc3 e6 15. a3 a5 16. h3 Bxf3 17. Bxf3 Qe7 18. Rd3 Rfd8 19. Bf4 h6 20. Re1 Qf6 21. Be5 Nxe5 22. Rxe5 Rxc5 23. Rxe6 fxe6 24. dxc5 Qxb2 {½-½ (45) Ladanyi,Z (2122)-Balogh,L (2142) Balatonlelle 2005}) 13. bxc3 {[%emt 0:11:52]} Bg4 {[%emt 0:11:38]} 14. Ba4 {[%emt 0:01:52]} Qa5 {[%emt 0:01:37]} 15. Bb3 {[%emt 0:00:48]} Rfd8 {[%emt 0:00:48]} 16. h3 {[%emt 0:00:24]} Bf5 {[%emt 0:02:06]} (16... Bxf3 $11 17. Qxf3 e6) 17. Qd2 {[%emt 0:01:12]} (17. g4 $5 {[%cal Rg4f5]} Be6 18. Ng5 $16) 17... b6 {[%emt 0:01:21]} 18. cxb6 {[%emt 0:00:49]} Qxb6 {[%emt 0:00:30]} 19. Bc2 {[%emt 0:00:44]} (19. g4 $11 Be6 20. Rb1) 19... Bxc2 $15 {[%emt 0:00:28]} 20. Rxc2 {[%emt 0:01:15]} Na5 {[%emt 0:00:05]} 21. Qe2 {[%emt 0:03:34]} Nc4 {[%emt 0:02:21]} 22. Bf4 {[%emt 0:03:22]} Rd7 {[%emt 0:00:48]} 23. Be5 {[%emt 0:02:18]} f6 {[%emt 0:05:44] &Nero is more active.} 24. Bf4 {[%emt 0:01:18][%cal Be5f4,Bf4g3,Bg3h4][%mdl 32]} Re8 {[%emt 0:00:09]} (24... e5 $15 25. dxe5 fxe5) 25. Nd2 $11 {[%emt 0:02:01]} Na3 {[%emt 0:01:10] [#]} (25... Nxd2 $11 26. Qxd2 Qc6) 26. Rcc1 {[%emt 0:00:20]} ({White should play} 26. Rb2 $1 $14 Qxb2 (26... Qc6 27. Rb3) 27. Qe6+ Kf8 28. Qxd7) 26... e5 {[%emt 0:00:01]} 27. Rfd1 {[%emt 0:03:04]} (27. dxe5 $11 fxe5 28. c4) 27... Re6 {[%emt 0:00:34]} (27... Rc7 $15) 28. dxe5 {[%emt 0:00:37]} fxe5 {[%emt 0:00:09]} 29. Bg3 {[%emt 0:01:15]} Qb2 {[%emt 0:05:38]} (29... Bh6 $11 {keeps the balance.}) 30. Qg4 {[%emt 0:01:19]} Ree7 {[%emt 0:02:55]} (30... Red6 $14) 31. Bh4 {[%emt 0:01:28]} Rf7 {[%emt 0:01:05]} 32. Qa4 {[%emt 0:00:48]} ({White should try} 32. Qe6 $14) 32... Bh6 {[%emt 0:00:31]} (32... Qxa2 $2 33. Ra1 Qc2 34. Qxa3 $18) 33. Ra1 $2 {[%emt 0:00:35][%mdl 8192] [#]} Bxd2 $19 {[%emt 0:00:21]} 34. Rxd2 {[%emt 0:00:15]} Qxa1+ {[%emt 0:00:10] Weighted Error Value: White=0.59/Black=0.32} 0-1

[Event "AUT-ch U16 Boys 2022"]
[Site "Sankt Veit an der Glan"]
[Date "2022.04.13"]
[Round "6.8"]
[White "Kuti, Oliver"]
[Black "Elsaesser, Daniel"]
[Result "0-1"]
[ECO "B22"]
[WhiteElo "1970"]
[BlackElo "1571"]
[Annotator "TA"]
[PlyCount "88"]
[EventDate "2022.04.11"]
[EventType "swiss"]
[EventCountry "AUT"]
[SourceTitle "playchess.com"]
[Source "ChessBase"]
[SourceQuality "1"]
[TimeControl "5400+30"]

{[%evp 10,88,9,11,6,10,1,0,8,10,5,-12,-10,-12,0,-16,0,-8,0,0,0,0,14,-38,0,0,0,0,0,0,0,0,-8,-10,0,-186,-179,-179,-184,-189,-160,-162,-178,-210,-222,-224,-228,-294,-277,-336,-240,-318,-314,-435,-408,-385,-377,-377,-370,-745,-736,-723,-718,-825,-750,-902,-898,-882,-850,-1005,-992,-1050,-1024,-1116,-1104,-1028,-1023,-6683,-6683,-2370,-1786]} 1. e4 {[%emt 0:00:03]} c5 {[%emt 0:00:06]} 2. c3 {[%emt 0:00:28]} d5 {[%emt 0:00:10]} 3. exd5 {[%emt 0:00:11]} Qxd5 {[%emt 0:00:10]} 4. d4 {[%emt 0:00:10]} Nc6 {[%emt 0:00:13]} 5. Nf3 {[%emt 0:00:11]} Nf6 {[%emt 0:00:09]} 6. Be3 {[%emt 0:00:54]} Bg4 {[%emt 0:00:15] B22: Sicilian: 2 c3.} 7. Be2 {[%emt 0:08:38]} cxd4 {[%emt 0:00:20]} 8. cxd4 {[%emt 0:00:47]} e6 {[%emt 0:02:26] The position is equal.} 9. Nc3 {[%emt 0:01:39]} Bb4 {[%emt 0:07:01]} 10. a3 {[%emt 0:07:41]} Bxc3+ {[%emt 0:01:38]} 11. bxc3 {[%emt 0:00:20]} O-O {[%emt 0:01:52]} 12. O-O {[%emt 0:01:23]} Rac8 {[%emt 0:01:40] [#]} 13. Rb1 $146 {[%emt 0:12:27]} ({Predecessor:} 13. Rc1 Na5 14. h3 Bh5 15. Ne5 Bxe2 16. Qxe2 Nc4 17. Nxc4 Qxc4 18. Qf3 Qd5 19. Qg3 {0-1 (33) Aniston,J-Ufodike,B ICC INT 2009}) 13... Na5 {[%emt 0:04:09]} 14. Rb5 {[%emt 0:05:59]} Qd8 {[%emt 0:00:33]} 15. Bg5 $1 {[%emt 0:09:03]} b6 {[%emt 0:01:33]} 16. Qc1 {[%emt 0:04:57]} (16. Ne5 $11 Bf5 17. g4) 16... Nc4 {[%emt 0:02:31]} 17. Bxc4 {[%emt 0:07:51]} Rxc4 {[%emt 0:01:16]} 18. Ne5 {[%emt 0:00:07]} Be2 {[%emt 0:00:21] aiming for ...Rc7.} 19. Nxc4 {[%emt 0:10:49]} Bxc4 {[%emt 0:00:48]} 20. Re5 {[%emt 0:01:25]} Bxf1 {[%emt 0:00:17]} 21. Kxf1 {[%emt 0:00:03]} Re8 {[%emt 0:07:31]} 22. Qf4 $2 {[%emt 0:03:41] [#] White is now going downhill.} (22. h3 $11) 22... Nd5 $1 $19 {[%emt 0:02:51][%mdl 512]} 23. Qg4 {[%emt 0:01:21]} Qc7 {[%emt 0:08:25]} 24. Bh6 {[%emt 0:03:52][%csl Gh6][%cal Rg4g7]} Qc4+ {[%emt 0:04:30]} 25. Kg1 {[%emt 0:00:55][%csl Gh6][%cal Rg4g7]} g6 {[%emt 0:00:26]} 26. h4 {[%emt 0:06:43]} Qxc3 {[%emt 0:03:12]} 27. Qe2 {[%emt 0:01:26][%cal Oe5d5] And now Rxd5! would win.} Qxd4 {[%emt 0:01:43]} 28. Bc1 {[%emt 0:02:17]} Nf4 {[%emt 0:04:48]} ({Not} 28... Rc8 $2 29. Bb2 Qc4 30. g3 $19) 29. Qb5 {[%emt 0:00:55]} Rf8 {[%emt 0:00:33] Threatens to win with ...Nd3.} 30. Bb2 {[%emt 0:00:48]} Qd1+ {[%emt 0:00:26]} 31. Kh2 {[%emt 0:00:02]} Qg4 {[%emt 0:00:36][%csl Gf4][%cal Rg4g2]} 32. Qc6 {[%emt 0:03:09]} Qxh4+ {[%emt 0:00:31]} 33. Kg1 {[%emt 0:00:01]} Nd3 {[%emt 0:01:27][%csl LRb2,LRe5,LRf2]} 34. g3 $2 {[%emt 0:02:55] [#]} (34. Re2) 34... Nxe5 $1 {[%emt 0:01:15] Black is clearly winning.} 35. Bxe5 {[%emt 0:00:01][%mdl 4096] Endgame KQR-KQB} Qd8 {[%emt 0:01:26] White must now prevent ...Qd1+.} 36. Bd6 {[%emt 0:02:16]} Re8 {[%emt 0:00:51]} 37. Be5 {[%emt 0:00:15]} Qd1+ {[%emt 0:02:48]} 38. Kh2 {[%emt 0:00:03]} Rd8 {[%emt 0:05:58] Hoping for ...Qh5+.} 39. Qc7 {[%emt 0:01:43]} Qd2 {[%emt 0:07:05]} 40. Kg2 {[%emt 0:01:23]} Qd7 {[%emt 0:00:29]} 41. Qc3 {[%emt 0:00:27]} Qd5+ {[%emt 0:09:44]} 42. Kg1 {[%emt 0:01:03]} Qc5 {[%emt 0:01:30]} 43. Qa1 {[%emt 0:00:51]} Rd2 {[%emt 0:01:23]} 44. Qe1 {[%emt 0:00:38]} Qd5 {[%emt 0:00:19] Weighted Error Value: White=0.56/Black=0.13 (very precise)} 0-1